bitfinex-derivatives/quotes_ETHF0:USTF0_20250430
["timestamp","ask_amount","ask_price","bid_price","bid_amount"]
[1746019894573,1.13241,1765.7,1765.6,0.1]
[1746019894768,1.13238,1765.8,1765.7,1.1324]
[1746019895270,1.13238,1765.8,1765.7,4.9604]
[1746019895575,1.13238,1765.8,1765.7,3.828]
[1746019896671,1.13238,1765.8,1765.7,2.65481]
[1746019896976,9.15118,1765.8,1765.7,1e-05]
[1746019897167,9.15118,1765.8,1765.6,0.1]
[1746019897168,8.0188,1765.8,1765.0,40.8]
[1746019897471,1.13278,1765.2,1765.1,1.13276]
[1746019897672,1.13279,1765.2,1765.0,40.8]
[1746019897875,3.2078,1765.4,1765.0,43.63212]
[1746019898173,1.1327,1765.3,1765.2,1.13269]
[1746019898870,1.13278,1765.2,1765.1,1.13276]
[1746019899073,4.15144,1765.4,1765.3,1.13266]
[1746019899274,1.13266,1765.3,1765.2,4.96068]
[1746019899472,1.13265,1765.4,1765.3,1.13266]
[1746019899673,1.13265,1765.4,1765.3,1.13263]
[1746019900177,5.9524,1765.5,1765.3,3.828]
[1746019900375,1.1326,1765.4,1765.3,3.828]
[1746019900570,3.2078,1765.5,1765.4,1.1326]
[1746019900771,1.1326,1765.4,1765.3,3.828]
[1746019900972,3.2078,1765.8,1765.3,7.0358]
[1746019901172,5.65984,1766.2,1765.3,7.0358]
[1746019901173,1.13225,1766.0,1765.6,2.83119]
[1746019901479,1.13225,1766.0,1765.9,1.13223]
[1746019901677,1.13226,1766.0,1765.9,1.13224]
[1746019902068,3.2078,1766.2,1766.1,1.13215]
[1746019902377,1.13198,1766.4,1766.3,1.132]
[1746019902579,8.06055914,1766.5,1766.4,1.13196]
[1746019902780,1.13202,1766.3,1766.2,1.13205]
[1746019902979,1.13207,1766.3,1766.2,1.13209]
[1746019903277,1.13207,1766.3,1766.2,3.828]
[1746019903479,1.13207,1766.3,1766.2,4.96009]
[1746019903678,1.13207,1766.3,1766.2,3.828]
[1746019903870,2.83074,1765.9,1765.5,3.2078]
[1746019904070,1.13249,1765.6,1765.5,1.13251]
[1746019904277,1.13249,1765.6,1765.5,3.828]
[1746019904477,9.34029,1765.6,1765.5,3.28365]
[1746019905381,3.2078,1765.6,1765.3,1.13262]
[1746019905578,5.80729,1765.5,1765.2,1.13272]
[1746019905780,1.13271,1765.3,1765.1,2.9077]
[1746019906084,1.13273,1765.2,1765.1,4.04045]
[1746019906384,1.1327,1765.3,1765.2,1.13271]
[1746019906582,5.65714,1765.7,1765.2,3.2078]
[1746019906883,1.1326,1765.4,1765.3,4.04033]
[1746019907072,1.1326,1765.4,1765.3,2.9077]
[1746019907278,1.1326,1765.4,1765.3,4.04036]
[1746019907478,4.85506931,1765.4,1765.3,2.9077]
[1746019907883,3.72246931,1765.4,1765.3,4.04036]
[1746019908084,4.85506931,1765.4,1765.3,4.04036]
[1746019908284,3.72246931,1765.4,1765.3,7.86836]
[1746019908481,4.85506931,1765.4,1765.3,6.7357]
[1746019908680,4.85506931,1765.4,1765.3,3.828]
[1746019909385,1.13273,1765.2,1765.1,1.13279]
[1746019909584,1.13279,1765.1,1765.0,3.828]
[1746019910292,6.13279,1765.1,1765.0,3.828]
[1746019910586,2.8326,1764.8,1764.1,3.2078]
[1746019910781,1.13329,1764.4,1764.3,1.13329]
[1746019910984,1.13321,1764.5,1764.4,1.13322]
[1746019911185,1.13313,1764.6,1764.5,1.13313]
[1746019911394,5.4471,1764.7,1764.6,1.13311]
[1746019911578,1.13308,1764.7,1764.6,1.13308]
[1746019911991,1.13302,1764.8,1764.7,1.13302]
[1746019912186,5.88848,1765.2,1765.1,1.13277]
[1746019912187,1.13278,1765.2,1765.1,1.13277]
[1746019912488,1.13298,1764.9,1764.8,1.13297]
[1746019912676,1.13298,1764.9,1764.8,2.8838]
[1746019912983,2.8322,1765.0,1764.6,1.13311]
[1746019913188,1.13308,1764.7,1764.6,4.01691]
[1746019913590,1.13308,1764.7,1764.6,2.8838]
[1746019913889,1.13313,1764.6,1764.5,1.13313]
[1746019914191,1.13324,1764.4,1764.3,4.34111]
[1746019914379,1.13323,1764.5,1764.4,1.13323]
[1746019914576,6.0637,1764.7,1764.3,3.2078]
[1746019914877,1.13292,1764.9,1764.6,2.83279]
[1746019915189,10.35382,1765.1,1764.8,1.13296]
[1746019915379,7.5218,1765.1,1764.7,2.9288]
[1746019915779,3.72246931,1765.2,1765.1,1.13279]
[1746019916884,3.72246931,1765.2,1765.1,6.13279]
[1746019917086,5.58370397,1765.3,1765.2,1.13273]
[1746019917281,5.58370397,1765.3,1765.2,7.23043]
[1746019917493,5.58370397,1765.3,1765.2,4.02263]
[1746019917696,6.71636397,1765.3,1765.2,4.02263]
[1746019917887,5.58370397,1765.3,1765.2,4.02263]
[1746019918190,5.58370397,1765.3,1765.2,6.7179]
[1746019918487,12.51397328,1765.6,1765.2,6.7179]
[1746019918488,3.71669175,1765.5,1765.2,6.7179]
[1746019918695,4.84925175,1765.5,1765.4,1.1326]
[1746019918907,3.71669175,1765.5,1765.3,1.1326]
[1746019919093,1.13266,1765.3,1765.2,3.828]
[1746019919291,1.13273,1765.2,1765.1,1.13276]
[1746019919796,1.13273,1765.2,1765.1,41.93275]
[1746019919996,1.13271,1765.3,1765.2,1.1327]
[1746019920192,1.13266,1765.3,1765.2,4.96071]
[1746019920388,1.13266,1765.3,1765.2,4.96073]
[1746019920593,4.34046,1765.3,1765.2,3.828]
[1746019920886,4.34046,1765.3,1765.2,2.62903]
[1746019920887,9.34046,1765.3,1765.2,2.62903]
[1746019921092,1.13311,1764.6,1764.5,2.7742]
[1746019921289,2.83253,1764.8,1764.3,10.455]
[1746019921494,1.13302,1764.8,1764.7,1.13301]
[1746019921694,1.13309,1764.7,1764.5,3.2078]
[1746019921898,1.13309,1764.7,1764.6,1.13308]
[1746019922098,1.13302,1764.8,1764.7,1.13301]
[1746019922393,1.13305,1764.7,1764.6,1.1331]
[1746019922597,3.2078,1765.0,1764.5,3.828]
[1746019922794,2.83205,1765.1,1764.5,9.8687]
[1746019922997,1.13291,1765.0,1764.9,1.1329]
[1746019923187,5.8825,1765.2,1764.7,2.83263]
[1746019923391,1.13282,1765.1,1765.0,1.13281]
[1746019923600,1.13283,1765.1,1765.0,1.13283]
[1746019923798,2.9011,1765.2,1764.8,2.8127]
[1746019923993,1.13286,1765.1,1765.0,1.13284]
[1746019924196,6.03979,1765.1,1764.8,3.828]
[1746019924399,4.34072,1764.9,1764.8,3.828]
[1746019924698,1.13292,1764.9,1764.8,3.828]
[1746019925099,5.73308,1765.2,1764.8,3.828]
[1746019925294,1.13292,1764.9,1764.8,3.828]
[1746019925599,1.13292,1764.9,1764.8,4.96098]
[1746019926001,4.00911,1765.1,1765.0,1.13286]
[1746019926199,1.13292,1764.9,1764.8,4.96094]
[1746019926412,1.13292,1764.9,1764.8,3.828]
[1746019926804,4.34072,1764.9,1764.8,3.828]
[1746019927104,13.68172,1764.9,1764.8,7e-07]
[1746019927299,1.13331,1764.3,1764.2,4.34117]
[1746019927492,3.2078,1764.6,1764.2,3.2078]
[1746019927694,14.20913,1764.9,1764.6,1.13306]
[1746019927904,1.13305,1764.8,1764.7,1.13305]
[1746019928096,1.13305,1764.8,1764.7,4.96105]
[1746019928296,4.34076,1764.9,1764.7,3.828]
[1746019928496,1.13296,1764.9,1764.8,1.13298]
[1746019928693,4.09485,1765.1,1765.0,1.13286]
[1746019928898,1.13288,1765.0,1764.9,1.13286]
[1746019929110,1.13288,1765.0,1764.9,4.96086]
[1746019929408,4.09484,1765.1,1765.0,1.13286]
[1746019929602,1.13286,1765.0,1764.9,4.96087]
[1746019929906,2.962,1765.1,1765.0,1.13286]
[1746019930106,7.30259,1765.1,1765.0,1.43086]
[1746019930299,1.13324,1764.4,1764.3,6.0234]
[1746019930502,1.13324,1764.4,1764.3,3.2078]
[1746019930702,1.13337,1764.2,1763.9,44.0078]
[1746019931004,1.13337,1764.2,1764.1,2.65034]
[1746019931206,1.13332,1764.3,1764.2,1.13333]
[1746019931411,1.13327,1764.4,1764.3,1.13327]
[1746019931707,3.2078,1765.4,1764.3,3.2078]
[1746019931903,1.13269,1765.3,1765.2,1.13273]
[1746019932506,1.13261,1765.4,1765.3,1.13262]
[1746019932709,32.04538781,1765.5,1765.4,1.1326]
[1746019932908,1.13261,1765.4,1765.3,1.13261]
[1746019933303,1.13272,1765.3,1765.2,1.13271]
[1746019933504,30.91280781,1765.5,1765.0,7.2258]
[1746019933703,30.91280781,1765.5,1765.0,2.8838]
[1746019933704,33.81470781,1765.5,1765.0,2.8838]
[1746019934006,33.81470781,1765.5,1765.4,1.1326]
[1746019934007,34.94729781,1765.5,1765.4,1.1326]
[1746019934207,34.94729781,1765.5,1765.4,4.9606]
[1746019934709,34.94729781,1765.5,1765.4,3.828]
[1746019935409,34.94729781,1765.5,1765.4,7.1045]
[1746019935603,32.04539781,1765.5,1765.4,8.2371]
[1746019935910,8.80874902,1765.7,1765.4,8.23707]
[1746019936105,8.80874902,1765.7,1765.4,7.1045]
[1746019936307,5.58824902,1765.7,1765.6,1.13247]
[1746019936509,5.34074709,1765.9,1765.8,1.13234]
[1746019936706,5.34074709,1765.9,1765.8,8.68214]
[1746019936903,11.16248742,1766.2,1766.1,1.13215]
[1746019937104,11.16248742,1766.2,1766.1,4.33995]
[1746019937405,11.16248742,1766.2,1766.1,9.33995]
[1746019937611,11.16248742,1766.2,1766.1,12.61645]
[1746019937805,11.16248742,1766.2,1766.1,7.61645]
[1746019938003,12.29457742,1766.2,1766.1,7.6165]
[1746019938311,1.13215,1766.1,1766.0,3.828]
[1746019938505,1.13247,1765.6,1765.5,3.2078]
[1746019938701,2.83091,1765.8,1765.4,4.18499]
[1746019938897,1.13254,1765.5,1765.4,43.8524]
[1746019939305,1.13254,1765.5,1765.4,3.0524]
[1746019940113,4.22824,1765.7,1765.5,1.13254]
[1746019940405,4.22824,1765.7,1765.6,3.0524]
[1746019940607,1.13241,1765.7,1765.6,3.0524]
[1746019940806,1.13254,1765.5,1765.4,3.828]
[1746019941014,1.13254,1765.5,1765.4,7.0388]
[1746019941813,4.42512,1765.6,1765.5,1.13254]
[1746019942011,3.2926,1765.6,1765.5,4.34334]
[1746019942312,3.0439,1765.9,1765.5,7.0388]
[1746019942510,3.0439,1765.9,1765.7,1.13241]
[1746019942810,7.17014,1766.3,1766.2,1.13207]
[1746019942811,1.13204,1766.3,1766.2,1.13207]
[1746019943006,1.13209,1766.2,1766.1,1.13211]
[1746019943309,3.2078,1766.9,1766.1,6.03818]
[1746019943517,5.65745,1767.2,1766.4,2.8299]
[1746019943518,1.13173,1766.8,1766.4,2.8299]
[1746019943703,1.13183,1766.6,1766.5,3.2108]
[1746019943914,4.27931,1766.7,1766.5,4.34269]
[1746019944215,4.27931,1766.7,1766.5,8.17069]
[1746019944410,4.27931,1766.7,1766.6,1.13183]
[1746019944608,4.27931,1766.7,1766.5,8.17065]
[1746019944804,4.27931,1766.7,1766.5,7.0388]
[1746019945013,1.13183,1766.6,1766.5,7.0388]
[1746019945218,1.13179,1766.7,1766.5,3.2108]
[1746019945518,1.13183,1766.6,1766.5,3.2108]
[1746019945719,1.13189,1766.5,1766.4,4.34]
[1746019946215,1.13189,1766.5,1766.4,3.828]
[1746019946807,3.1475,1766.5,1766.4,4.95996]
[1746019947015,1.13179,1766.7,1766.4,8.828]
[1746019947212,4.15874,1766.8,1766.6,1.13183]
[1746019947514,4.15874,1766.8,1766.5,10.6403]
[1746019947719,3.027,1766.8,1766.7,1.13177]
[1746019948514,3.2078,1767.0,1766.7,3.0855]
[1746019948714,1.13153,1767.1,1766.7,5.9149]
[1746019948919,6.0961,1767.2,1766.9,1.13159]
[1746019949112,1.13147,1767.2,1767.1,1.13151]
[1746019949421,1.13151,1767.1,1767.0,4.21706]
[1746019949714,1.13157,1767.0,1766.9,3.828]
[1746019949912,1.13177,1766.7,1766.6,40.8]
[1746019950118,1.13177,1766.7,1765.4,5.66281]
[1746019950119,1.13209,1766.2,1766.1,3.2329]
[1746019950321,1.13209,1766.2,1765.8,5.47931]
[1746019950322,1.13228,1765.9,1765.8,4.347]
[1746019950522,1.13234,1765.8,1765.7,3.2329]
[1746019950821,2.8311,1765.7,1765.1,4.347]
[1746019951018,9.0241,1765.7,1765.2,3.2329]
[1746019951209,1.13258,1765.5,1765.3,1.13262]
[1746019951414,1.1325,1765.6,1765.4,1.13255]
[1746019951716,1.1325,1765.6,1765.5,3.2329]
[1746019951912,3.0242,1765.6,1765.1,45.147]
[1746019952221,1.13262,1765.4,1765.2,4.36558]
[1746019952420,3.1688,1765.7,1765.2,3.2329]
[1746019952719,1.13239,1765.8,1765.6,1.13242]
[1746019952917,1.13239,1765.8,1765.7,3.2518]
[1746019953415,1.13247,1765.6,1765.5,3.828]
[1746019953712,3.23,1765.9,1765.5,3.828]
[1746019953915,1.13235,1765.8,1765.7,1.13239]
[1746019954103,1.13241,1765.7,1765.6,4.38425]
[1746019954312,1.13241,1765.7,1765.6,3.2518]
[1746019955017,1.13247,1765.6,1765.5,3.828]
[1746019955220,1.13259,1765.5,1765.4,1.1326]
[1746019955519,1.13252,1765.6,1765.5,1.13254]
[1746019955721,1.13246,1765.7,1765.6,1.13247]
[1746019955920,2.83103,1765.7,1765.2,4.347]
[1746019956222,1.13257,1765.5,1765.4,1.1326]
[1746019956519,1.13258,1765.5,1765.3,4.26192]
[1746019956720,1.1326,1765.4,1765.3,3.1293]
[1746019957019,1.13258,1765.5,1765.3,4.26193]
[1746019957319,1.1326,1765.4,1765.3,3.828]
[1746019957521,4.4869,1765.4,1765.3,3.828]
[1746019958017,1.13292,1764.9,1764.8,8.68778]
[1746019958213,1.13313,1764.6,1764.4,6.4169]
[1746019958412,1.13311,1764.7,1764.5,1.13316]
[1746019958611,1.13311,1764.7,1764.5,4.26246]
[1746019958807,4.4493,1764.8,1764.7,1.13305]
[1746019959017,3.1952,1764.9,1764.8,1.13298]
[1746019959214,3.1952,1764.9,1764.7,7.1442]
[1746019959417,1.13298,1764.8,1764.7,7.1442]
[1746019959822,4.32817,1764.9,1764.8,1.13298]
[1746019960207,3.2078,1765.1,1764.7,3.3162]
[1746019960512,4.18422,1765.3,1764.9,2.83231]
[1746019960722,6.2467,1765.3,1765.2,1.13273]
[1746019961021,4.20942,1765.4,1765.3,1.13266]
[1746019961221,13.04104,1765.7,1765.3,1.13266]
[1746019961222,4.184,1765.6,1765.3,3.828]
[1746019961521,1.13254,1765.5,1765.4,3.3162]
[1746019961817,1.1326,1765.4,1765.3,3.828]
[1746019962019,4.4276,1765.4,1765.3,3.828]
[1746019962318,4.4276,1765.4,1765.1,7.65429]
[1746019962319,1.13273,1765.2,1765.1,7.65429]
[1746019962512,1.13273,1765.2,1765.1,3.3137]
[1746019962713,1.13286,1765.0,1764.9,4.96092]
[1746019962919,4.42783,1765.1,1764.9,4.96092]
[1746019963120,1.13286,1765.0,1764.9,3.828]
[1746019963317,3.295,1765.0,1764.9,4.96092]
[1746019963517,4.42786,1765.0,1764.9,3.828]
[1746019963826,7.63566,1765.0,1764.9,3.828]
[1746019964121,3.295,1765.0,1764.9,3.828]
[1746019964313,3.0375,1765.1,1764.7,6.14632]
[1746019964509,4.17034,1765.1,1764.9,1.13288]
[1746019964709,1.13292,1764.9,1764.7,4.44671]
[1746019964918,3.295,1765.0,1764.7,3.3137]
[1746019965222,3.2078,1765.3,1764.8,2.83247]
[1746019965418,1.13282,1765.1,1764.9,3.2404]
[1746019965618,3.0635,1765.2,1765.0,1.13282]
[1746019965816,7.4548,1765.5,1765.0,2.83215]
[1746019966020,3.0635,1765.5,1765.4,1.1326]
[1746019966222,3.0595,1765.6,1765.5,1.13254]
[1746019966424,1.13254,1765.5,1765.4,4.96058]
[1746019966620,4.19202,1765.6,1765.5,1.13254]
[1746019966821,4.19202,1765.6,1765.5,3.2404]
[1746019967117,9.27817528,1765.8,1765.7,1.13241]
[1746019967318,9.27817528,1765.8,1765.7,8.68921]
[1746019967521,9.27817528,1765.8,1765.7,5.48141]
[1746019967728,10.41051528,1765.8,1765.7,4.349]
[1746019967927,13.47401528,1765.8,1765.7,4.349]
[1746019968228,13.47401528,1765.8,1765.7,8.177]
[1746019968821,16.68181528,1765.8,1765.7,3.828]
[1746019969023,21.68181528,1765.8,1765.7,3.828]
[1746019969223,1.1326,1765.4,1765.3,3.0541]
[1746019969423,5.89437,1765.8,1765.3,3.0541]
[1746019969721,1.13255,1765.5,1765.4,1.13257]
[1746019970226,1.1326,1765.4,1765.3,3.828]
[1746019970425,7.5862,1765.4,1765.3,3.828]
[1746019971139,3.2458,1765.4,1765.0,3.0541]
[1746019971316,1.13277,1765.2,1765.1,1.13277]
[1746019971522,1.1327,1765.3,1765.0,3.0541]
[1746019971723,8.8868,1765.4,1765.1,3.2078]
[1746019971923,5.862,1765.4,1765.3,1.13266]
[1746019973224,5.862,1765.4,1765.3,4.96066]
[1746019973830,3.1713,1765.8,1765.4,2.83147]
[1746019974030,1.13245,1765.7,1765.6,1.13246]
[1746019974526,3.0248,1765.9,1765.5,3.2046]
[1746019974831,1.13237,1765.8,1765.6,1.13241]
[1746019975128,1.13237,1765.8,1765.7,3.3518]
[1746019975825,3.0248,1765.9,1765.7,3.3518]
[1746019976032,1.13228,1766.0,1765.7,3.3518]
[1746019976330,1.13234,1765.8,1765.7,7.1798]
[1746019976531,1.13234,1765.8,1765.7,47.9798]
[1746019977630,1.13234,1765.8,1765.7,49.11221]
[1746019977836,1.13234,1765.8,1765.7,47.9798]
[1746019978827,4.34014,1765.8,1765.7,3.828]
[1746019979223,1.13247,1765.6,1765.5,44.0078]
[1746019979733,1.13247,1765.6,1765.5,6.5508]
[1746019980129,1.13247,1765.6,1765.5,10.3788]
[1746019980326,1.13247,1765.6,1765.5,51.1788]
[1746019980934,1.13247,1765.6,1765.5,10.3788]
[1746019981226,4.34027,1765.6,1765.5,7.171]
[1746019981530,15.20227,1765.6,1765.5,2.57292]
[1746019981729,10.15187,1765.6,1765.5,2.57292]
[1746019981923,13.4098,1766.0,1765.5,2.57292]
[1746019982126,1.13235,1765.8,1765.7,1.13237]
[1746019982326,1.13247,1765.6,1765.5,2.57292]
[1746019982521,4.34027,1765.6,1765.5,2.57292]
[1746019982828,1.13247,1765.6,1765.5,2.57292]
[1746019983225,4.46717,1765.6,1765.5,2.57292]
[1746019983626,1.13247,1765.6,1765.5,3.70546]
[1746019983829,6.99445,1765.7,1765.6,1.13247]
[1746019984021,5.862,1766.0,1765.6,46.90932]
[1746019984226,7.43254678,1766.1,1766.0,1.13221]
[1746019984829,7.43254678,1766.1,1766.0,9.34001]
[1746019985022,9.27817528,1766.3,1766.2,1.13209]
[1746019985228,5.28672206,1766.3,1766.2,8.16789]
[1746019985436,3.77094206,1766.3,1766.2,13.16789]
[1746019985627,11.16248742,1766.7,1766.6,1.13183]
[1746019985822,12.29425742,1766.7,1766.6,7.5468]
[1746019986128,11.16248742,1766.7,1766.6,10.47083]
[1746019986439,11.16248742,1766.7,1766.6,16.79473]
[1746019986625,12.29425742,1766.7,1766.6,7.4551]
[1746019986822,12.29425742,1766.7,1766.6,3.1161]
[1746019987025,1.13183,1766.6,1766.5,2.60627]
[1746019987230,1.13209,1766.2,1766.1,4.339]
[1746019987430,3.2078,1766.3,1765.5,73.1228]
[1746019987628,1.13247,1765.6,1765.5,3.2078]
[1746019987824,1.13247,1765.6,1765.4,4.339]
[1746019988031,1.13254,1765.5,1765.4,4.339]
[1746019988231,2.83073,1765.9,1765.4,12.98802319]
[1746019988532,1.13251,1765.6,1765.4,11.85547319]
[1746019988734,3.059,1765.8,1765.5,3.1161]
[1746019989038,1.13228,1765.9,1765.8,1.13231]
[1746019989337,1.13228,1765.9,1765.8,6.9441]
[1746019989740,1.13219,1766.1,1765.8,11.9441]
[1746019990042,1.13204,1766.3,1766.2,1.13206]
[1746019990336,1.13215,1766.1,1766.0,1.13217]
[1746019990532,1.13214,1766.2,1766.0,3.0252]
[1746019990834,3.2078,1766.7,1766.2,2.83022]
[1746019991037,1.13173,1766.8,1766.3,47.033]
[1746019991233,1.13183,1766.6,1766.5,4.33968]
[1746019991435,1.13183,1766.6,1766.5,3.2078]
[1746019991737,3.1679,1766.8,1766.3,43.63005]
[1746019991939,3.3384,1766.9,1766.3,40.8]
[1746019992138,5.99718,1766.8,1766.4,1.13196]
[1746019992333,2.82943,1766.7,1766.3,44.628]
[1746019992542,1.13194,1766.5,1766.3,45.76]
[1746019992735,3.3384,1766.9,1766.4,2.8299]
[1746019993041,1.13174,1766.8,1766.7,1.13177]
[1746019993242,3.2078,1767.1,1766.5,2.82969]
[1746019993428,18.09194,1767.4,1766.7,1.13177]
[1746019993730,1.13127,1767.5,1767.3,1.13134]
[1746019993944,6.5582,1767.7,1767.3,1.13134]
[1746019994130,1.13138,1767.3,1767.2,7.5468]
[1746019994330,1.13136,1767.4,1767.2,8.67821]
[1746019994537,1.13121,1767.6,1767.4,1.13131]
[1746019994931,1.13125,1767.5,1767.4,1.13131]
[1746019995240,1.13123,1767.6,1767.4,45.75931]
[1746019995542,3.1193,1767.9,1767.4,44.628]
[1746019995733,1.13125,1767.5,1767.4,44.628]
[1746019995935,1.13125,1767.5,1767.4,3.828]
[1746019996136,1.13138,1767.3,1767.2,7.5468]
[1746019996334,1.13157,1767.0,1766.8,1.13169]
[1746019996535,1.13157,1767.0,1766.9,40.8]
[1746019996734,1.13153,1767.1,1767.0,1.13155]
[1746019996937,1.13153,1767.1,1766.9,40.8]
[1746019997133,1.13153,1767.1,1766.9,45.7596]
[1746019997332,1.13157,1767.0,1766.9,44.628]
[1746019997735,1.13157,1767.0,1766.9,3.828]
[1746019998237,1.13164,1766.9,1766.8,41.9317]
[1746019998440,1.13164,1766.9,1766.8,40.8]
[1746019999638,6.03692,1766.9,1766.4,7.4421]
[1746019999833,4.28655,1766.8,1766.4,10.6499]
[1746020000136,9.0698,1767.1,1766.5,43.62973]
[1746020000338,3.2078,1767.1,1766.9,1.13161]
[1746020000538,9.1181,1767.4,1766.8,4.337]
[1746020000739,2.82846,1767.3,1766.9,3.2078]
[1746020000946,1.13183,1766.6,1766.5,40.8]
[1746020001141,2.82942,1766.7,1766.3,1.13202]
[1746020001342,6.5169,1766.8,1766.3,2.83006]
[1746020001547,1.13189,1766.5,1766.4,41.93195]
[1746020001746,1.13189,1766.5,1766.4,40.8]
[1746020001944,1.13187,1766.6,1766.5,1.13189]
[1746020002242,15.82038,1766.8,1766.5,3.828]
[1746020002550,1.13183,1766.6,1766.5,3.828]
[1746020002742,2.82986,1766.5,1766.0,5.46919]
[1746020003046,1.13207,1766.3,1766.2,1.13209]
[1746020003248,1.13205,1766.3,1766.0,48.965]
[1746020003449,1.132,1766.4,1766.0,51.79553]
[1746020003642,9.0698,1766.6,1766.0,51.79553]
[1746020003643,6.99388,1766.6,1766.4,1.13192]
[1746020003852,3.2664,1766.7,1766.2,2.8302]
[1746020004048,4.39819,1766.7,1766.5,1.13185]
[1746020004247,6.4742,1766.7,1766.2,3.828]
[1746020004548,1.13202,1766.3,1766.2,3.828]
[1746020005143,1.13209,1766.2,1766.1,3.3051]
[1746020005940,3.2653,1766.4,1766.1,3.3051]
[1746020006142,1.13202,1766.3,1766.2,1.13203]
[1746020006649,1.13197,1766.4,1766.3,1.13199]
[1746020006851,9.1273,1766.6,1766.4,1.13196]
[1746020007052,1.13189,1766.5,1766.4,1.13196]
[1746020007347,1.13189,1766.5,1766.4,3.828]
[1746020007547,4.33969,1766.5,1766.4,3.828]
[1746020008153,1.13209,1766.2,1766.1,40.8]
[1746020008344,1.13215,1766.1,1766.0,4.337]
[1746020008550,1.13215,1766.2,1766.0,5.46918]
[1746020008751,1.13215,1766.2,1766.1,1.13215]
[1746020009052,3.1591,1766.3,1766.2,1.13209]
[1746020009345,1.13209,1766.2,1766.1,40.8]
[1746020009552,1.13215,1766.1,1766.0,3.828]
[1746020009744,4.29125,1766.1,1766.0,3.828]
[1746020010151,1.13221,1766.0,1765.9,44.0078]
[1746020010352,1.13241,1765.7,1765.6,3.2078]
[1746020010856,1.13241,1765.7,1765.6,45.14027]
[1746020011052,1.13241,1765.7,1765.6,40.8]
[1746020011355,1.13247,1765.6,1765.5,3.828]
[1746020011558,7.70067,1765.6,1765.5,3.828]
[1746020011851,1.13276,1765.2,1765.1,1.13278]
[1746020012050,2.83137,1765.5,1765.1,1.13274]
[1746020012246,1.13272,1765.3,1765.1,1.13274]
[1746020012447,1.13269,1765.3,1765.2,1.13271]
[1746020012643,1.13279,1765.1,1765.0,3.828]
[1746020013247,5.862,1765.5,1765.0,3.828]
[1746020013552,8.69336,1765.5,1765.1,1.13276]
[1746020013750,1.13269,1765.3,1765.0,3.828]
[1746020013949,1.1327,1765.3,1765.0,3.828]
[1746020014151,5.862,1765.5,1765.0,3.828]
[1746020014152,5.90404,1765.6,1765.1,3.2078]
[1746020014352,1.13265,1765.4,1765.2,1.1327]
[1746020014553,3.0407,1765.5,1765.3,1.13266]
[1746020014858,3.0407,1765.5,1765.2,1.13271]
[1746020015158,1.13275,1765.2,1764.9,7.5358]
[1746020015356,3.0407,1765.5,1764.9,7.5358]
[1746020015552,1.13257,1765.5,1765.1,6.03972]
[1746020015746,5.862,1766.0,1765.4,2.8314]
[1746020015950,9.0698,1766.1,1765.8,1.13231]
[1746020016157,1.13229,1765.9,1765.8,1.13232]
[1746020016659,7.46831849,1766.0,1765.9,1.13228]
[1746020016858,8.60054849,1766.0,1765.9,1.13228]
[1746020017050,7.46831849,1766.0,1765.9,1.13228]
[1746020017253,7.46831849,1766.0,1765.9,4.96028]
[1746020017457,8.60052849,1766.0,1765.9,4.96028]
[1746020017656,8.60052849,1766.0,1765.9,3.828]
[1746020017857,22.67032849,1766.0,1765.9,2.66627001]
[1746020018063,25.74442849,1766.0,1765.9,2.66627001]
[1746020018360,1.13247,1765.6,1765.5,40.8]
[1746020018564,2.83109,1765.7,1765.2,5.46168]
[1746020018756,3.0741,1765.5,1765.2,4.329]
[1746020019062,1.13266,1765.4,1765.3,40.8]
[1746020019464,3.0741,1765.5,1764.9,7.5368]
[1746020019656,1.13302,1764.8,1764.5,3.2078]
[1746020019855,1.13295,1764.9,1764.7,1.13299]
[1746020020063,1.13296,1764.9,1764.7,40.8]
[1746020020267,3.2209,1765.0,1764.8,1.13295]
[1746020020458,5.862,1765.2,1764.7,44.0078]
[1746020020761,5.862,1765.3,1764.9,2.83221]
[1746020020965,13.4987,1765.6,1765.2,3.2078]
[1746020021158,3.2209,1765.5,1765.3,1.1326]
[1746020021467,3.2209,1765.5,1765.3,1.13266]
[1746020021667,1.1327,1765.3,1765.2,1.13271]
[1746020021970,3.2209,1765.5,1765.4,1.1326]
[1746020022160,9.1697,1765.6,1765.5,1.13254]
[1746020022359,3.2209,1765.8,1765.2,11.3658]
[1746020022661,1.13243,1765.7,1765.6,1.13243]
[1746020022865,2.83056,1766.0,1765.4,6.03931]
[1746020022866,4.17539,1765.8,1765.4,6.03931]
[1746020023066,22.65231849,1766.1,1765.7,1.13236]
[1746020023261,1.13231,1765.9,1765.8,1.13232]
[1746020023663,13.33031849,1766.1,1765.6,10.36899]
[1746020023858,13.33031849,1766.1,1765.6,7.16119]
[1746020024166,17.50550849,1766.1,1766.0,1.13221]
[1746020024359,13.33031849,1766.1,1766.0,1.13221]
[1746020024565,7.46831849,1766.2,1766.1,1.13215]
[1746020025357,7.46831849,1766.2,1766.1,4.24395]
[1746020026166,7.46831849,1766.2,1766.1,12.45175]
[1746020026772,7.46831849,1766.2,1766.1,7.45175]
[1746020027158,7.46831849,1766.2,1766.1,12.45175]
[1746020027464,2.86861576,1766.3,1766.2,1.13209]
[1746020027666,8.96115742,1766.5,1766.4,1.13196]